bitfinex/quotes_SOLUSD_20251201
["timestamp","ask_amount","ask_price","bid_price","bid_amount"]
[1764620338293,13.99072634,124.8,124.75,13.99072634]
[1764620338505,8.92,124.79,124.75,13.99072634]
[1764620340116,8.92,124.79,124.76,8.01538954]
[1764620340335,8.92,124.79,124.76,13.99072634]
[1764620340623,30.92437299,124.79,124.74,22.00680674]
[1764620341608,30.92437299,124.79,124.72,45.27312115]
[1764620341609,16.93364665,124.79,124.75,13.99072634]
[1764620342001,8.80994492,124.78,124.73,8.0173174]
[1764620342221,22.91072634,124.77,124.73,8.0173174]
[1764620342517,7.81196641,124.76,124.72,8.01771408]
[1764620342722,8.92,124.75,124.72,8.01771408]
[1764620343095,8.92,124.75,124.72,15.82968049]
[1764620343494,8.01667468,124.74,124.71,7.91196641]
[1764620343849,8.01667468,124.74,124.72,7.81196641]
[1764620344505,16.93608696,124.75,124.72,7.81196641]
[1764620345524,16.95477932,124.77,124.74,7.81196641]
[1764620345721,16.95477932,124.77,124.75,7.81196641]
[1764620345897,16.95477932,124.77,124.74,7.81196641]
[1764620349323,16.95477932,124.77,124.74,15.82862388]
[1764620350350,8.94,124.77,124.74,15.82862388]
[1764620351998,16.95475475,124.77,124.74,15.82862388]
[1764620352219,16.95475475,124.77,124.73,7.81196641]
[1764620353408,16.95475475,124.77,124.73,15.82865698]
[1764620354820,8.94,124.77,124.75,7.81196641]
[1764620355000,8.94,124.77,124.74,7.81196641]
[1764620355203,8.94,124.77,124.73,7.81196641]
[1764620356435,8.94,124.77,124.73,15.82878732]
[1764620356436,16.95474974,124.77,124.73,15.82878732]
[1764620357034,8.94,124.77,124.73,15.82878732]
[1764620357831,16.95477541,124.77,124.73,15.82878732]
[1764620359025,8.94,124.77,124.73,15.82878732]
[1764620359409,16.95493844,124.77,124.73,15.82878732]
[1764620362038,16.95493844,124.77,124.74,15.82862953]
[1764620362235,16.95493844,124.77,124.74,8.01666312]
[1764620363841,3.21335263,124.75,124.72,8.0174835]
[1764620364025,3.21335263,124.75,124.71,0.1]
[1764620364026,3.21335263,124.74,124.71,0.1]
[1764620364421,8.94,124.73,124.71,0.1]
[1764620365548,20.1708007,124.73,124.71,0.1]
[1764620365847,16.95744807,124.73,124.71,0.1]
[1764620366044,3.21335263,124.72,124.71,0.1]
[1764620366438,20.1708007,124.73,124.71,0.1]
[1764620367034,16.95744807,124.73,124.71,0.1]
[1764620367231,8.01603206,124.75,124.71,0.1]
[1764620367540,8.94,124.74,124.71,3.31335263]
[1764620367936,8.01603206,124.75,124.72,3.21335263]
[1764620368127,8.01346261,124.79,124.74,3.21335263]
[1764620368328,8.94,124.78,124.75,3.21335263]
[1764620368635,8.94,124.78,124.74,3.21335263]
[1764620369242,8.94,124.78,124.75,8.01603206]
[1764620369450,3.21335263,124.76,124.71,20.1461123]
[1764620369632,12.15335263,124.76,124.71,23.35946493]
[1764620370258,12.15335263,124.76,124.71,0.1]
[1764620370259,8.80994492,124.75,124.71,0.1]
[1764620371829,16.95565077,124.76,124.72,3.21335263]
[1764620372750,8.94,124.76,124.74,3.21335263]
[1764620372950,8.94,124.76,124.75,3.21335263]
[1764620373128,83.01376018,124.79,124.75,11.22885935]
[1764620373129,8.92,124.78,124.75,11.22885935]
[1764620373643,8.92,124.78,124.76,3.21335263]
[1764620373882,40.04975578,124.85,124.75,8.01550672]
[1764620373883,78.21335263,124.85,124.77,3.21335263]
[1764620374147,8.92,124.84,124.8,3.21335263]
[1764620374937,83.00798275,124.88,124.83,3.21335263]
[1764620375138,8.92,124.86,124.84,8.01025312]
[1764620375449,8.92,124.86,124.84,11.22360575]
[1764620375645,8.80994492,124.85,124.81,8.01213884]
[1764620375840,8.80994492,124.85,124.81,3.21335263]
[1764620376039,8.80994492,124.85,124.82,3.21335263]
[1764620376352,8.80994492,124.85,124.82,7.79838033]
[1764620377255,8.80994492,124.85,124.82,15.80972773]
[1764620377454,8.80994492,124.85,124.82,7.79838033]
[1764620377756,16.81957271,124.85,124.82,7.79838033]
[1764620377952,16.81957271,124.85,124.81,15.81043007]
[1764620379059,8.80994492,124.85,124.82,7.79838033]
[1764620379230,8.80994492,124.85,124.82,15.8096539]
[1764620380360,16.9290187,124.86,124.84,7.79838033]
[1764620380361,8.92,124.86,124.84,7.79838033]
[1764620381251,8.92,124.86,124.84,15.80839431]
[1764620381633,8.80994492,124.89,124.85,7.79838033]
[1764620381849,8.92,124.88,124.85,7.79838033]
[1764620382245,170.01327259,124.92,124.84,28.03564678]
[1764620382246,150.0,124.92,124.84,28.03564678]
[1764620382443,8.80994492,124.91,124.87,7.79838033]
[1764620382646,8.20445861,124.94,124.87,16.308864]
[1764620382938,8.92,124.93,124.87,25.228864]
[1764620383138,8.92,124.93,124.88,7.79838033]
[1764620383356,8.92,124.93,124.89,8.0070462]
[1764620383559,8.92,124.93,124.89,15.80542653]
[1764620383759,0.2,124.94,124.9,7.79838033]
[1764620383960,0.2,124.94,124.91,7.79838033]
[1764620384258,0.2,124.94,124.92,7.79838033]
[1764620384434,0.2,124.94,124.91,7.79838033]
[1764620384635,0.2,124.94,124.9,7.79838033]
[1764620385357,0.2,124.94,124.91,8.00576415]
[1764620385938,9.00994492,124.94,124.91,8.00576415]
[1764620387450,17.01401178,124.94,124.9,8.00618672]
[1764620387642,7.79838033,124.93,124.9,8.00618672]
[1764620388349,16.71838033,124.93,124.9,8.00618672]
[1764620388665,8.92,124.93,124.89,27.81599583]
[1764620389763,0.2,124.94,124.92,7.79838033]
[1764620390763,0.2,124.94,124.92,15.80332978]
[1764620392239,9.12,124.94,124.9,15.80417095]
[1764620392440,9.12,124.94,124.9,8.00579062]
[1764620392656,9.12,124.94,124.9,15.80417095]
[1764620393236,9.12,124.94,124.92,7.79838033]
[1764620393459,0.2,124.94,124.93,7.79838033]
[1764620394663,0.2,124.94,124.91,8.92]
[1764620394966,0.2,124.94,124.93,7.79838033]
[1764620395267,0.2,124.94,124.93,15.80286284]
[1764620396048,0.2,124.94,124.93,8.00448251]
[1764620396248,0.2,124.94,124.93,15.80286284]
[1764620397855,0.2,124.95,124.93,35.81406911]
[1764620398062,0.2,124.95,124.94,7.79838033]
[1764620398456,0.2,124.95,124.94,3.20060019]
[1764620399146,0.2,124.95,124.94,11.20444203]
[1764620400663,0.2,124.95,124.94,8.00384184]
[1764620400867,0.2,124.95,124.94,11.20444203]
[1764620402572,0.2,124.95,124.94,13.00702129]
[1764620404672,0.2,124.95,124.94,8.00384184]
[1764620405353,0.2,124.95,124.93,8.00448251]
[1764620405553,5.00317945,124.94,124.9,8.00640512]
[1764620405775,5.00317945,124.91,124.87,28.02897205]
[1764620406158,5.00317945,124.92,124.87,33.0321515]
[1764620406359,5.00317945,124.94,124.88,5.00317945]
[1764620406678,46.08375323,124.95,124.88,5.00317945]
[1764620406679,5.00317945,124.93,124.88,5.00317945]
[1764620407176,5.00317945,124.93,124.89,28.0246617]
[1764620407358,13.00743965,124.94,124.89,28.0246617]
[1764620407759,0.2,124.95,124.92,5.00317945]
[1764620407957,0.2,124.95,124.93,5.00317945]
[1764620408569,0.2,124.95,124.92,5.00317945]
[1764620408785,5.00317945,124.93,124.89,16.308864]
[1764620408989,5.00317945,124.9,124.82,5.00317945]
[1764620409168,5.00317945,124.87,124.83,28.03813185]
[1764620409373,5.00317945,124.88,124.83,28.03813185]
[1764620409560,8.00688672,124.9,124.83,33.0413113]
[1764620409883,5.00317945,124.86,124.83,28.03813185]
[1764620410076,5.00317945,124.86,124.82,8.01153661]
[1764620410265,5.00317945,124.86,124.81,8.92]
[1764620410459,13.96769913,124.86,124.81,8.92]
[1764620410777,13.96769913,124.86,124.81,22.88769913]
[1764620411394,13.96769913,124.86,124.81,30.89980493]
[1764620411671,21.97672693,124.86,124.82,13.96769913]
[1764620412460,21.97672693,124.86,124.81,8.92]
[1764620412674,8.0090278,124.86,124.81,13.96769913]
[1764620412873,13.96769913,124.85,124.8,13.96769913]
[1764620413076,13.96769913,124.87,124.82,13.96769913]
[1764620413385,8.92,124.88,124.76,14.06769913]
[1764620413386,13.96769913,124.83,124.76,14.06769913]
[1764620413558,13.96769913,124.81,124.76,14.06769913]
[1764620413759,13.96769913,124.8,124.76,0.1]
[1764620413960,13.96769913,124.77,124.76,0.1]
[1764620414964,22.77764405,124.77,124.76,0.1]
[1764620415358,105.93455275,124.77,124.76,0.1]
[1764620417889,17.72994492,124.78,124.76,0.1]
[1764620418592,22.08622896,124.82,124.76,0.1]
[1764620418593,22.08622896,124.82,124.77,13.96769913]
[1764620418884,8.92,124.81,124.78,13.96769913]
[1764620419274,0.14216157,124.8,124.76,0.1]
[1764620419584,13.96769913,124.77,124.76,0.1]
[1764620419786,8.92,124.77,124.76,0.1]
[1764620419969,22.88769913,124.77,124.76,0.1]
[1764620420779,31.69764405,124.77,124.76,0.1]
[1764620421469,16.93474713,124.77,124.76,0.1]
[1764620421891,30.90244626,124.77,124.76,0.1]
[1764620422375,16.93474713,124.77,124.76,0.1]
[1764620423286,8.92,124.77,124.76,0.1]
[1764620425306,39.71239118,124.77,124.76,0.1]
[1764620429005,16.93474713,124.77,124.76,0.1]
[1764620430488,30.90244626,124.77,124.76,0.1]
[1764620431105,16.93474713,124.77,124.76,0.1]
[1764620431604,8.92,124.81,124.76,14.06769913]
[1764620431804,25.228864,124.81,124.76,14.06769913]
[1764620432704,33.24148268,124.81,124.76,22.08272532]
[1764620432902,25.228864,124.81,124.76,22.08272532]
[1764620433404,25.228864,124.81,124.77,13.96769913]
[1764620433597,21.97795225,124.84,124.78,13.96769913]
[1764620433934,8.92,124.83,124.78,13.96769913]
[1764620434086,22.88769913,124.83,124.78,13.96769913]
[1764620434486,8.92,124.83,124.78,13.96769913]
[1764620434882,8.92,124.83,124.79,21.98116174]
[1764620435089,13.96769913,124.86,124.81,13.96769913]
[1764620435307,31.69764405,124.86,124.81,13.96769913]
[1764620435605,76.0379032,124.86,124.8,13.96769913]
[1764620436809,76.0379032,124.86,124.8,21.98021777]
[1764620437107,56.01547809,124.86,124.81,13.96769913]
[1764620437292,8.92,124.86,124.81,13.96769913]
[1764620437613,8.92,124.86,124.82,13.96769913]
[1764620438111,8.92,124.86,124.81,13.96769913]
[1764620438583,16.92908177,124.86,124.82,13.96769913]
[1764620438984,16.92908177,124.86,124.82,21.97917593]
[1764620439189,16.92908177,124.86,124.81,21.97956896]
[1764620439585,8.92,124.86,124.81,21.97956896]
[1764620439790,8.92,124.86,124.82,13.96769913]
[1764620439990,16.92905175,124.86,124.82,13.96769913]
[1764620441314,8.92,124.86,124.83,8.01089481]
[1764620442387,20.01663854,124.9,124.84,13.96769913]
[1764620442615,45.24550254,124.9,124.85,13.96769913]
[1764620442915,42.90433767,124.9,124.84,13.96769913]
[1764620443216,59.21320167,124.9,124.84,13.96769913]
[1764620443402,8.00724884,124.89,124.84,13.96769913]
[1764620443607,8.00724884,124.89,124.85,8.00961153]
[1764620444602,47.20318694,124.9,124.85,8.00961153]
[1764620444802,33.23548781,124.9,124.85,21.97731066]
[1764620445118,47.20318694,124.9,124.85,8.00961153]
[1764620445411,33.23548781,124.9,124.85,21.97731066]
[1764620446114,47.20318694,124.9,124.85,8.00961153]
[1764620448212,13.96769913,124.89,124.85,8.00961153]
[1764620448415,53.25150062,124.9,124.83,13.96769913]
[1764620448416,22.88769913,124.88,124.83,8.01038916]
[1764620448946,13.96769913,124.87,124.83,8.01038916]
[1764620449096,22.88769913,124.88,124.83,8.01038916]
[1764620449414,8.00832866,124.87,124.83,8.01038916]
[1764620450091,22.88769913,124.88,124.83,8.01038916]
[1764620450295,8.92,124.88,124.83,21.97808829]
[1764620450914,22.88769913,124.88,124.83,8.01038916]
[1764620451416,13.96769913,124.85,124.78,8.01410482]
[1764620451730,13.96769913,124.85,124.79,13.96769913]
[1764620451731,22.88769913,124.85,124.79,13.96769913]
[1764620451898,8.92,124.85,124.8,13.96769913]
[1764620452216,8.92,124.85,124.81,13.96769913]
[1764620453416,8.92,124.85,124.82,8.01153661]
[1764620453620,33.23749993,124.87,124.82,42.00807727]
[1764620453799,47.20519906,124.87,124.82,8.01153661]
[1764620454316,13.96769913,124.86,124.81,8.01208383]
[1764620454707,67.22602071,124.87,124.81,21.97978296]
[1764620455009,13.96769913,124.86,124.81,8.01208383]
[1764620455519,8.00961153,124.85,124.81,8.01208383]
[1764620456019,47.2051033,124.87,124.81,21.97978296]
[1764620457008,67.22592495,124.87,124.81,21.97978296]
[1764620457205,25.228864,124.87,124.82,13.96769913]
[1764620457416,25.228864,124.87,124.83,8.01089481]
[1764620458022,33.23727611,124.87,124.83,8.01089481]
[1764620458595,13.96769913,124.85,124.79,8.01346261]
[1764620458801,13.96769913,124.85,124.78,16.308864]
[1764620458802,13.96769913,124.84,124.78,33.24263874]
[1764620459017,13.96769913,124.84,124.78,47.21033787]
[1764620459498,8.01089481,124.83,124.78,67.24559993]
[1764620459919,21.97824995,124.84,124.78,67.24559993]
[1764620460304,28.94446763,124.85,124.8,13.96769913]
[1764620460305,8.92,124.85,124.8,13.96769913]
[1764620460523,8.00952757,124.86,124.81,13.96769913]
[1764620460733,16.92952757,124.86,124.81,13.96769913]
[1764620461024,13.96769913,124.84,124.78,44.3579008]
[1764620461203,8.92,124.83,124.78,44.3579008]
[1764620461601,13.96769913,124.81,124.76,20.1380172]
[1764620461802,13.96769913,124.78,124.76,0.1]
[1764620462412,16.308864,124.81,124.76,0.1]
[1764620462612,8.92,124.8,124.76,0.1]
[1764620462814,8.92,124.8,124.76,22.08292965]
[1764620463716,8.92,124.8,124.76,28.15370438]
[1764620465106,16.93182154,124.82,124.77,7.80528035]
[1764620465306,16.93182154,124.82,124.76,28.15370438]
[1764620465599,24.73710189,124.82,124.76,27.94375421]
[1764620465824,7.80528035,124.81,124.76,20.13847386]
[1764620466524,15.81748916,124.81,124.76,28.1538634]
[1764620466828,8.01220881,124.81,124.76,35.95914375]
[1764620467422,16.93155021,124.82,124.78,7.80528035]
[1764620469109,16.93155021,124.82,124.78,15.81878178]
[1764620470433,8.92,124.82,124.78,15.81878178]
[1764620471333,8.92,124.82,124.78,35.85404384]
[1764620471540,16.93056807,124.84,124.79,7.80528035]
[1764620472232,24.73584842,124.84,124.78,35.85404384]
[1764620472441,7.80528035,124.83,124.78,28.04876349]
[1764620472623,7.80528035,124.83,124.78,8.01350143]
[1764620473136,7.80528035,124.81,124.77,8.01474713]
[1764620473335,7.80528035,124.79,124.76,0.1]
[1764620473513,16.72528035,124.78,124.76,0.1]
[1764620474038,7.80528035,124.77,124.76,0.1]
[1764620475533,24.6299724,124.77,124.76,0.1]
[1764620476538,99.77213397,124.77,124.76,0.1]
[1764620476736,24.77213397,124.77,124.76,0.1]
[1764620477436,24.6299724,124.77,124.76,0.1]
[1764620478717,99.77213397,124.77,124.76,1e-08]
[1764620481645,33.13355605,124.77,124.76,1e-08]
[1764620481821,40.9388364,124.77,124.76,1e-08]
[1764620482349,16.93474713,124.77,124.76,1e-08]
[1764620486486,8.01474713,124.77,124.76,1e-08]
[1764620486625,45.15246546,124.79,124.76,1e-08]
[1764620486626,53.27649072,124.79,124.76,1e-08]
[1764620486827,61.08177107,124.79,124.76,1e-08]
[1764620487737,7.80528035,124.78,124.76,1e-08]
[1764620488055,8.92,124.77,124.76,1e-08]
[1764620488635,24.74002748,124.77,124.76,1e-08]
[1764620488957,16.93474713,124.77,124.76,1e-08]
[1764620494061,8.92,124.77,124.76,1e-08]
[1764620494737,16.93474713,124.77,124.76,1e-08]
[1764620496150,8.80994492,124.81,124.76,1e-08]
[1764620496151,8.01217851,124.81,124.76,1e-08]
[1764620496360,28.03588592,124.84,124.77,3.21263538]
[1764620496554,36.4517525,124.84,124.78,3.21263538]
[1764620496851,3.21263538,124.83,124.77,3.21263538]
[1764620497060,8.92,124.84,124.79,3.21263538]
[1764620497252,16.92924287,124.86,124.81,3.21263538]
[1764620497455,8.92,124.86,124.81,3.21263538]
[1764620497662,20.1407218,124.88,124.82,3.21263538]
[1764620498362,3.21263538,124.87,124.82,8.01153661]
[1764620498573,3.21263538,124.84,124.77,0.14216157]
[1764620498750,3.21263538,124.83,124.77,33.24361113]
[1764620498936,3.21263538,124.83,124.78,3.21263538]
[1764620499138,3.21263538,124.83,124.77,53.28047896]
[1764620499139,12.13263538,124.83,124.77,47.57311434]
[1764620502052,8.01086114,124.84,124.79,3.21263538]
[1764620502243,8.0070462,124.89,124.83,3.21263538]
[1764620502562,8.0070462,124.89,124.86,8.00897004]
[1764620502771,11.21968158,124.89,124.86,8.00897004]
[1764620503367,3.21263538,124.87,124.8,8.01282051]
[1764620503543,3.21263538,124.85,124.8,28.04487179]
[1764620503934,3.21263538,124.86,124.8,31.25750717]
[1764620504558,3.21263538,124.86,124.81,3.21263538]
[1764620504736,11.22140609,124.87,124.81,3.21263538]
[1764620506055,11.22140609,124.87,124.82,8.01153661]
[1764620506267,3.21263538,124.86,124.82,8.01153661]
[1764620506469,3.21263538,124.85,124.81,8.01209027]
[1764620506764,3.21263538,124.84,124.81,8.01209027]
[1764620507363,3.21263538,124.84,124.8,28.04487179]
[1764620509482,11.22313953,124.84,124.8,8.01282051]
[1764620509648,3.21263538,124.83,124.8,8.01282051]
[1764620509848,3.21263538,124.82,124.8,8.01282051]
[1764620510043,3.21263538,124.81,124.78,8.01410482]
[1764620511170,3.21263538,124.81,124.76,28.05271442]
[1764620511667,3.21263538,124.81,124.76,1e-08]
[1764620511668,3.21263538,124.79,124.76,1e-08]
[1764620512051,3.21263538,124.8,124.76,1e-08]
[1764620512448,11.22504101,124.81,124.76,1e-08]
[1764620512675,3.21263538,124.81,124.76,1e-08]
[1764620512870,12.13263538,124.82,124.76,1e-08]
[1764620513174,12.13263538,124.82,124.76,3.21263539]
[1764620513366,3.21263538,124.81,124.76,1e-08]
[1764620514073,9.17783765,124.86,124.78,3.21263538]
[1764620514277,3.21263538,124.84,124.78,3.21263538]
[1764620514473,8.92,124.86,124.78,7.80077587]
[1764620514770,7.80077587,124.84,124.78,7.80077587]
[1764620515468,33.02963987,124.86,124.8,7.80077587]
[1764620515869,33.02963987,124.86,124.81,28.04262478]
[1764620516072,41.03864365,124.86,124.81,28.04262478]
[1764620517875,25.228864,124.86,124.81,35.84340065]
[1764620518074,8.92,124.86,124.82,7.80077587]
[1764620518278,8.20672908,124.9,124.84,7.80077587]
[1764620518464,24.92750495,124.9,124.84,7.80077587]
[1764620518666,16.92077587,124.9,124.84,7.80077587]
[1764620518877,16.92077587,124.9,124.83,8.92]
[1764620518878,16.92077587,124.9,124.85,7.80077587]
[1764620519050,16.92077587,124.9,124.83,8.92]
[1764620519254,7.80077587,124.89,124.83,16.72077587]
[1764620520387,8.0070698,124.89,124.84,15.81102899]
[1764620521292,8.0070698,124.89,124.84,35.83666179]
[1764620522286,15.80784567,124.89,124.84,28.03588592]
[1764620522588,7.80077587,124.88,124.84,28.03588592]
[1764620522768,15.80784567,124.89,124.84,35.83666179]
[1764620523083,8.0070698,124.89,124.84,35.83666179]
[1764620523457,15.80784567,124.89,124.84,28.03588592]
[1764620525078,15.80884409,124.88,124.84,8.01025312]
[1764620525258,8.00806822,124.88,124.84,8.01025312]
[1764620525884,15.80884409,124.88,124.84,8.01025312]
[1764620526180,15.80884409,124.88,124.83,8.92]
[1764620526181,15.80884409,124.88,124.83,8.01089481]
[1764620526385,21.97029291,124.88,124.83,8.01089481]
[1764620526676,13.96222469,124.86,124.83,8.01089481]
[1764620527180,13.96222469,124.86,124.82,8.01153661]
[1764620527480,8.92,124.87,124.82,8.01153661]
[1764620527666,13.96222469,124.86,124.82,8.01153661]
[1764620528385,13.96222469,124.83,124.81,8.0118702]
[1764620528682,22.88222469,124.84,124.81,8.0118702]
[1764620528996,13.96222469,124.83,124.81,8.0118702]
[1764620529493,13.96222469,124.83,124.78,28.04825311]
[1764620529673,13.96222469,124.83,124.78,42.0104778]
[1764620530068,8.92,124.84,124.78,42.0104778]
[1764620530388,8.92,124.84,124.79,13.96222469]
[1764620530680,13.96222469,124.89,124.83,13.96222469]
[1764620531175,13.96222469,124.88,124.82,13.96222469]
[1764620531385,13.96222469,124.88,124.83,28.03813185]
[1764620531560,39.39108869,124.9,124.84,13.96222469]
[1764620531767,47.39758088,124.9,124.84,13.96222469]
[1764620532100,13.96222469,124.89,124.83,50.92035654]
[1764620533094,13.96222469,124.88,124.83,8.01089481]
[1764620533595,8.00832866,124.87,124.83,8.01089481]
[1764620534690,21.97055335,124.87,124.82,8.01145509]
[1764620534889,13.96222469,124.86,124.82,8.01145509]
[1764620535067,13.96222469,124.86,124.81,8.01203814]
[1764620535590,8.00961153,124.85,124.81,8.01203814]
[1764620536490,21.97183622,124.85,124.81,8.01203814]
[1764620536697,22.88222469,124.84,124.79,8.0131398]
[1764620537672,30.89284787,124.84,124.79,8.0131398]
[1764620538592,30.89284787,124.84,124.79,28.04679634]
[1764620538593,8.92,124.84,124.79,28.04679634]
[1764620538887,30.89270678,124.84,124.79,8.0131398]
[1764620539889,22.88222469,124.84,124.79,8.0131398]
[1764620540975,30.27108869,124.86,124.8,13.96222469]
[1764620541181,30.27108869,124.86,124.81,13.96222469]
[1764620541182,16.308864,124.86,124.81,13.96222469]
[1764620541377,16.308864,124.86,124.81,22.88222469]
[1764620541577,21.97016049,124.88,124.82,13.96222469]
[1764620541783,8.0079358,124.88,124.83,13.96222469]
[1764620541980,21.97016049,124.88,124.83,8.01089481]
[1764620542193,13.96222469,124.87,124.83,8.01089481]
[1764620542996,13.96222469,124.87,124.82,20.02758123]
[1764620542997,13.96222469,124.87,124.82,28.03911784]
[1764620543187,13.96222469,124.86,124.82,28.03911784]
[1764620544192,13.96222469,124.86,124.81,8.92]
[1764620544193,13.96222469,124.85,124.81,8.0118994]
[1764620545271,8.01025312,124.84,124.8,8.01282051]
[1764620545477,37.75318034,124.86,124.8,28.04487179]
[1764620545478,22.88222469,124.86,124.8,28.04487179]
[1764620545787,30.89140718,124.86,124.8,42.00709648]
[1764620546693,16.92918249,124.86,124.81,13.96222469]
[1764620547284,16.92918249,124.86,124.82,8.01153661]
[1764620547889,30.89140718,124.86,124.82,8.01153661]
[1764620549280,30.89140718,124.86,124.81,28.04262478]
[1764620550198,30.89120796,124.86,124.81,28.04262478]
[1764620550900,8.92,124.86,124.81,42.00484947]
[1764620551102,22.77216961,124.88,124.81,42.00484947]
[1764620551278,31.69216961,124.88,124.82,8.92]
[1764620551482,39.70019968,124.88,124.83,8.01089481]
[1764620551901,13.96222469,124.87,124.82,16.93120664]
[1764620552401,13.96222469,124.87,124.82,36.96004817]
[1764620553906,25.73797499,124.88,124.82,50.92227286]
[1764620553907,30.88994195,124.88,124.82,50.92227286]
[1764620554107,13.96222469,124.87,124.82,36.96004817]
[1764620555395,21.9708849,124.87,124.82,36.96004817]
[1764620555594,13.96222469,124.87,124.82,36.96004817]
[1764620555802,21.97058344,124.87,124.82,36.96004817]
[1764620556483,13.02126458,124.87,124.82,36.96004817]
[1764620557303,13.02126458,124.87,124.82,28.04004817]
[1764620558011,13.02126458,124.87,124.82,8.01120664]
[1764620558382,5.01290583,124.87,124.82,8.01120664]
[1764620558583,5.01290583,124.87,124.82,28.04004817]
[1764620558787,13.02124417,124.87,124.82,33.052954]
[1764620559014,13.02124417,124.87,124.82,28.04004817]
[1764620560697,13.02124417,124.87,124.82,33.052954]
[1764620561908,13.02124417,124.87,124.82,28.04004817]
[1764620562290,5.01290583,124.86,124.82,8.01120664]
[1764620563395,5.01290583,124.85,124.81,8.01217851]
[1764620563602,5.01290583,124.84,124.81,8.01217851]
[1764620564502,5.01290583,124.84,124.78,16.308864]
[1764620564503,5.01290583,124.83,124.78,20.0345566]
[1764620565022,5.01290583,124.82,124.78,20.0345566]
[1764620565205,5.01290583,124.82,124.79,8.01328627]
[1764620565411,13.93290583,124.82,124.77,13.93290583]
[1764620565611,21.94498127,124.82,124.78,8.01392889]
[1764620567805,21.94498127,124.82,124.77,8.92]
[1764620567806,5.01290583,124.81,124.77,8.01474713]
[1764620568505,8.01106454,124.83,124.78,5.01290583]
[1764620568709,5.01290583,124.82,124.77,28.05161496]
[1764620569524,5.01290583,124.81,124.77,28.05161496]
[1764620569722,13.02718737,124.78,124.76,1e-08]
[1764620569928,5.01290583,124.77,124.76,1e-08]
[1764620570125,16.93428154,124.78,124.76,1e-08]
[1764620570310,5.01290583,124.77,124.76,1e-08]
[1764620571729,13.02765296,124.77,124.76,1e-08]
[1764620571908,38.14646188,124.77,124.76,1e-08]
[1764620577432,16.308864,124.77,124.76,1e-08]
[1764620577616,5.01290583,124.79,124.76,1e-08]
[1764620577815,13.0268661,124.79,124.76,1e-08]
[1764620578011,5.01290583,124.77,124.76,1e-08]
[1764620579321,13.02765296,124.77,124.76,1e-08]
[1764620581336,8.01474713,124.77,124.76,1e-08]
[1764620581538,13.02765296,124.77,124.76,1e-08]
[1764620582225,8.01474713,124.77,124.76,1e-08]
[1764620583532,13.02765296,124.77,124.76,1e-08]
[1764620583730,21.83759788,124.77,124.76,1e-08]
[1764620584331,96.97975945,124.77,124.76,1e-08]
[1764620584534,113.28862345,124.77,124.76,1e-08]
[1764620585047,38.28862345,124.77,124.76,1e-08]
[1764620585331,38.14646188,124.77,124.76,1e-08]
[1764620586430,36.3472974,124.77,124.76,1e-08]
[1764620590819,8.01441075,124.78,124.76,1e-08]
[1764620591842,8.01304218,124.8,124.76,1e-08]
[1764620592044,20.14622371,124.81,124.76,1e-08]
[1764620592423,20.14622371,124.81,124.76,8.01538955]
[1764620592618,150.0,124.86,124.76,24.32425355]
[1764620592836,13.06820775,124.92,124.8,3.21374135]
[1764620592837,40.16738171,124.85,124.8,3.21374135]
[1764620593147,16.92961153,124.85,124.79,16.308864]
[1764620593353,3.21374135,124.84,124.79,16.308864]
[1764620593525,3.21374135,124.82,124.76,8.01538955]
[1764620593854,3.21374135,124.82,124.76,11.2291309]
[1764620594075,3.21374135,124.82,124.76,3.21374136]
[1764620594217,3.21374135,124.81,124.76,3.21374136]
[1764620594422,8.01217851,124.81,124.77,8.01474713]
[1764620595150,11.22551145,124.82,124.77,8.01474713]
[1764620595661,16.9311881,124.83,124.77,8.01474713]
[1764620595837,3.21374135,124.82,124.77,8.01474713]
[1764620596239,3.21374135,124.82,124.77,11.22848848]
[1764620596440,40.17216649,124.83,124.77,11.22848848]
[1764620596749,3.21374135,124.82,124.77,11.22848848]
[1764620597262,16.9311881,124.83,124.78,3.21374135]
[1764620597665,3.21374135,124.82,124.77,28.05161496]
[1764620598656,12.13374135,124.83,124.77,31.26535631]
[1764620598857,16.9309648,124.83,124.77,31.26535631]
[1764620599083,20.14470615,124.83,124.78,3.21374135]
[1764620599652,20.14470615,124.83,124.77,31.26535631]
[1764620600146,3.21374135,124.81,124.76,3.21374136]
[1764620600343,3.21374135,124.81,124.76,1e-08]
[1764620600653,3.21374135,124.81,124.76,8.01534401]
[1764620600853,8.01282051,124.8,124.76,8.01534401]
[1764620601049,17.72994492,124.82,124.77,3.21374135]
[1764620601050,8.01175324,124.82,124.77,3.21374135]
[1764620601247,11.22549459,124.82,124.77,3.21374135]